fUSD/lending_fUSD_20240701
["ID","MTS","AMOUNT","RATE_DAILY","PERIOD"]
[330839413,1719852653280,-500.0,0.00021917,4]
[330839414,1719852653290,-500.0,0.00021917,4]
[330839415,1719852653299,-500.0,0.00021917,4]
[330839416,1719852653309,-500.0,0.00021917,4]
[330839417,1719852653318,-617.14079907,0.00021917,4]
[330839418,1719852653328,-500.0,0.00021917,4]
[330839419,1719852653337,-500.0,0.00021917,4]
[330839420,1719852653347,-500.0,0.00021917,4]
[330839421,1719852653356,-500.0,0.00021917,4]
[330839422,1719852653365,-500.0,0.00021917,4]
[330839423,1719852653374,-500.0,0.00021917,4]
[330839424,1719852653383,-500.0,0.00021917,4]
[330839425,1719852653392,-500.0,0.00021917,4]
[330839426,1719852653401,-500.0,0.00021917,4]
[330839427,1719852653410,-500.0,0.00021917,4]
[330839428,1719852653419,-500.0,0.00021917,4]
[330839429,1719852653428,-500.0,0.00021917,4]
[330839430,1719852653437,-500.0,0.00021917,4]
[330839431,1719852653446,-500.0,0.00021917,4]
[330839432,1719852653455,-500.0,0.00021917,4]
[330839433,1719852653465,-500.0,0.00021917,4]
[330839434,1719852653474,-500.0,0.00021917,4]
[330839435,1719852653484,-500.0,0.00021917,4]
[330839436,1719852653493,-500.0,0.00021917,4]
[330839437,1719852653501,-500.0,0.00021917,4]
[330839438,1719852653511,-500.0,0.00021917,4]
[330839439,1719852653520,-500.0,0.00021917,4]
[330839440,1719852653529,-597.55,0.00021917,4]
[330839441,1719852653539,-500.0,0.00021917,4]
[330839442,1719852653548,-500.0,0.00021917,4]
[330839443,1719852653558,-500.0,0.00021917,4]
[330839444,1719852653567,-500.0,0.00021917,4]
[330839445,1719852653577,-500.0,0.00021917,4]
[330839446,1719852653586,-500.0,0.00021917,4]
[330839447,1719852653596,-500.0,0.00021917,4]
[330839448,1719852653605,-500.0,0.00021917,4]
[330839449,1719852653614,-500.0,0.00021917,4]
[330839450,1719852653623,-500.0,0.00021917,4]
[330839451,1719852653633,-500.0,0.00021917,4]
[330839452,1719852653642,-500.0,0.00021917,4]
[330839453,1719852653651,-500.0,0.00021917,4]
[330839454,1719852653661,-500.0,0.00021917,4]
[330839455,1719852653670,-500.0,0.00021917,4]
[330839456,1719852653679,-500.0,0.00021917,4]
[330839457,1719852653689,-500.0,0.00021917,4]
[330839458,1719852653698,-500.0,0.00021917,4]
[330839459,1719852653708,-500.0,0.00021917,4]
[330839460,1719852653718,-380.16,0.00021917,4]
[330839461,1719852653726,-500.0,0.00021917,4]
[330839462,1719852653735,-500.0,0.00021917,4]
[330839463,1719852653745,-500.0,0.00021917,4]
[330839464,1719852653755,-500.0,0.00021917,4]
[330839465,1719852653764,-500.0,0.00021917,4]
[330839466,1719852653773,-583.7,0.00021917,4]
[330839467,1719852653783,-500.0,0.00021917,4]
[330839468,1719852653792,-500.0,0.00021917,4]
[330839469,1719852653802,-500.0,0.00021917,4]
[330839470,1719852653812,-500.0,0.00021917,4]
[330839471,1719852653822,-512.35,0.00021917,4]
[330839472,1719852653832,-500.0,0.00021917,4]
[330839473,1719852653841,-500.0,0.00021917,4]
[330839474,1719852653851,-500.0,0.00021917,4]
[330839475,1719852653860,-500.0,0.00021917,4]
[330839476,1719852653871,-500.0,0.00021917,4]
[330839477,1719852653881,-500.0,0.00021917,4]
[330839478,1719852653891,-500.0,0.00021917,4]
[330839479,1719852653900,-500.0,0.00021917,4]
[330839480,1719852653910,-180.98914742,0.00021917,4]
[330839481,1719852653920,-500.0,0.00021917,4]
[330839482,1719852653930,-500.0,0.00021917,4]
[330839483,1719852653940,-277.08,0.00021917,4]
[330839484,1719852653949,-500.0,0.00021917,4]
[330839485,1719852653959,-500.0,0.00021917,4]
[330839486,1719852653970,-500.0,0.00021917,4]
[330839487,1719852653980,-500.0,0.00021917,4]
[330839488,1719852653990,-500.0,0.00021917,4]
[330839489,1719852653999,-500.0,0.00021917,4]
[330839490,1719852654009,-500.0,0.00021917,4]
[330839491,1719852654019,-500.0,0.00021917,4]
[330839492,1719852654029,-500.0,0.00021917,4]
[330839493,1719852654039,-500.0,0.00021917,4]
[330839494,1719852654050,-500.0,0.00021917,4]
[330839495,1719852654060,-500.0,0.00021917,4]
[330839496,1719852654070,-500.0,0.00021917,4]
[330839497,1719852654081,-500.0,0.00021917,4]
[330839498,1719852654092,-500.0,0.00021917,4]
[330839499,1719852654101,-500.0,0.00021917,4]
[330839500,1719852654111,-500.0,0.00021917,4]
[330839501,1719852654121,-230.1,0.00021917,4]
[330839502,1719852654131,-302.16,0.00021917,4]
[330839503,1719852654141,-500.0,0.00021917,4]
[330839504,1719852654155,-500.0,0.00021917,4]
[330839505,1719852654165,-500.0,0.00021917,4]
[330839506,1719852654175,-500.0,0.00021917,4]
[330839507,1719852654184,-500.0,0.00021917,4]
[330839508,1719852654194,-500.0,0.00021917,4]
[330839509,1719852654204,-500.0,0.00021917,4]
[330839510,1719852654214,-500.0,0.00021917,4]
[330839511,1719852654224,-500.0,0.00021917,4]
[330839512,1719852654234,-500.0,0.00021917,4]
[330839513,1719852654246,-500.0,0.00021917,4]
[330839514,1719852654256,-500.0,0.00021917,4]
[330839515,1719852654266,-500.0,0.00021917,4]
[330839516,1719852654276,-500.0,0.00021917,4]
[330839517,1719852654286,-500.0,0.00021917,4]
[330839518,1719852654296,-500.0,0.00021917,4]
[330839519,1719852654306,-500.0,0.00021917,4]
[330839520,1719852654316,-500.0,0.00021917,4]
[330839521,1719852654328,-500.0,0.00021917,4]
[330839522,1719852654339,-500.0,0.00021917,4]
[330839523,1719852654350,-500.0,0.00021917,4]
[330839524,1719852654360,-500.0,0.00021917,4]
[330839525,1719852654370,-500.0,0.00021917,4]
[330839526,1719852654380,-500.0,0.00021917,4]
[330839527,1719852654390,-500.0,0.00021917,4]
[330839528,1719852654400,-500.0,0.00021917,4]
[330839529,1719852654410,-500.0,0.00021917,4]
[330839530,1719852654420,-500.0,0.00021917,4]
[330839531,1719852654430,-500.0,0.00021917,4]
[330839532,1719852654439,-500.0,0.00021917,4]
[330839533,1719852654449,-500.0,0.00021917,4]
[330839534,1719852654459,-500.0,0.00021917,4]
[330839535,1719852654470,-500.0,0.00021917,4]
[330839536,1719852654480,-500.0,0.00021917,4]
[330839537,1719852654490,-500.0,0.00021917,4]
[330839538,1719852654499,-500.0,0.00021917,4]
[330839539,1719852654509,-500.0,0.00021917,4]
[330839540,1719852654519,-500.0,0.00021917,4]
[330839541,1719852654529,-500.0,0.00021917,4]
[330839542,1719852654540,-500.0,0.00021917,4]
[330839543,1719852654549,-163.11239909,0.00021917,4]
[330839544,1719852654559,-639.78,0.00021917,4]
[330839545,1719852654569,-500.0,0.00021917,4]
[330839546,1719852654579,-500.0,0.00021917,4]
[330839547,1719852654589,-500.0,0.00021917,4]
[330839548,1719852654599,-500.0,0.00021917,4]
[330839549,1719852654609,-500.0,0.00021917,4]
[330839550,1719852654620,-500.0,0.00021917,4]
[330839551,1719852654630,-500.0,0.00021917,4]
[330839552,1719852654639,-500.0,0.00021917,4]
[330839553,1719852654650,-500.0,0.00021917,4]
[330839554,1719852654659,-500.0,0.00021917,4]
[330839555,1719852654669,-500.0,0.00021917,4]
[330839556,1719852654679,-500.0,0.00021917,4]
[330839557,1719852654689,-500.0,0.00021917,4]
[330839558,1719852654699,-500.0,0.00021917,4]
[330839559,1719852654709,-500.0,0.00021917,4]
[330839560,1719852654719,-152.43690269,0.00021917,4]
[330839561,1719852654729,-500.0,0.00021917,4]
[330839562,1719852654740,-500.0,0.00021917,4]
[330839563,1719852654753,-500.0,0.00021917,4]
[330839564,1719852654763,-630.31740068,0.00021917,4]
[330839565,1719852654773,-500.0,0.00021917,4]
[330839566,1719852654783,-500.0,0.00021917,4]
[330839567,1719852654793,-500.0,0.00021917,4]
[330839568,1719852654803,-500.0,0.00021917,4]
[330839569,1719852654814,-249.6,0.00021917,4]
[330839570,1719852654828,-500.0,0.00021917,4]
[330839571,1719852654838,-500.0,0.00021917,4]
[330839572,1719852654848,-500.0,0.00021917,4]
[330839573,1719852654858,-500.0,0.00021917,4]
[330839574,1719852654869,-500.0,0.00021917,4]
[330839575,1719852654879,-500.0,0.00021917,4]
[330839576,1719852654889,-500.0,0.00021917,4]
[330839577,1719852654900,-500.0,0.00021917,4]
[330839578,1719852654910,-500.0,0.00021917,4]
[330839579,1719852654920,-500.0,0.00021917,4]
[330839580,1719852654930,-500.0,0.00021917,4]
[330839581,1719852654940,-500.0,0.00021917,4]
[330839582,1719852654950,-500.0,0.00021917,4]
[330839583,1719852654961,-500.0,0.00021917,4]
[330839584,1719852654972,-500.0,0.00021917,4]
[330839585,1719852654983,-500.0,0.00021917,4]
[330839586,1719852654994,-500.0,0.00021917,4]
[330839587,1719852655004,-500.0,0.00021917,4]
[330839588,1719852655014,-500.0,0.00021917,4]
[330839589,1719852655024,-500.0,0.00021917,4]
[330839590,1719852655034,-500.0,0.00021917,4]
[330839591,1719852655044,-500.0,0.00021917,4]
[330839592,1719852655054,-500.0,0.00021917,4]
[330839593,1719852655064,-500.0,0.00021917,4]
[330839594,1719852655074,-500.0,0.00021917,4]
[330839595,1719852655086,-500.0,0.00021917,4]
[330839596,1719852655096,-500.0,0.00021917,4]
[330839597,1719852655106,-500.0,0.00021917,4]
[330839598,1719852655115,-500.0,0.00021917,4]
[330839599,1719852655125,-500.0,0.00021917,4]
[330839600,1719852655135,-500.0,0.00021917,4]
[330839601,1719852655145,-500.0,0.00021917,4]
[330839602,1719852655159,-500.0,0.00021917,4]
[330839603,1719852655170,-500.0,0.00021917,4]
[330839604,1719852655180,-597.22,0.00021917,4]
[330839605,1719852655191,-500.0,0.00021917,4]
[330839606,1719852655201,-306.66661104,0.00021917,4]
[330839607,1719852655211,-500.0,0.00021917,4]
[330839608,1719852655221,-500.0,0.00021917,4]
[330839609,1719852655231,-500.0,0.00021917,4]
[330839610,1719852655243,-500.0,0.00021917,4]
[330839611,1719852655253,-500.0,0.00021917,4]
[330839612,1719852655262,-500.0,0.00021917,4]
[330839613,1719852655273,-500.0,0.00021917,4]
[330839614,1719852655283,-500.0,0.00021917,4]
[330839615,1719852655294,-500.0,0.00021917,4]
[330839616,1719852655304,-500.0,0.00021917,4]
[330839617,1719852655314,-500.0,0.00021917,4]
[330839618,1719852655324,-493.05,0.00021917,4]
[330839619,1719852655335,-500.0,0.00021917,4]
[330839620,1719852655345,-500.0,0.00021917,4]
[330839621,1719852655356,-500.0,0.00021917,4]
[330839622,1719852655366,-500.0,0.00021917,4]
[330839623,1719852655376,-500.0,0.00021917,4]
[330839624,1719852655386,-500.0,0.00021917,4]
[330839625,1719852655396,-500.0,0.00021917,4]
[330839626,1719852655406,-500.0,0.00021917,4]
[330839627,1719852655415,-618.88,0.00021917,4]
[330839628,1719852655425,-500.0,0.00021917,4]
[330839629,1719852655435,-500.0,0.00021917,4]
[330839630,1719852655446,-500.0,0.00021917,4]
[330839631,1719852655456,-500.0,0.00021917,4]
[330839632,1719852655467,-500.0,0.00021917,4]
[330839633,1719852655478,-500.0,0.00021917,4]
[330839634,1719852655488,-500.0,0.00021917,4]
[330839635,1719852655498,-500.0,0.00021917,4]
[330839636,1719852655508,-500.0,0.00021917,4]
[330839637,1719852655517,-500.0,0.00021917,4]
[330839638,1719852655527,-500.0,0.00021917,4]
[330839639,1719852655538,-500.0,0.00021917,4]
[330839640,1719852655547,-500.0,0.00021917,4]
[330839641,1719852655557,-500.0,0.00021917,4]
[330839642,1719852655567,-500.0,0.00021917,4]
[330839643,1719852655577,-500.0,0.00021917,4]
[330839644,1719852655587,-214.67204814,0.00021917,4]
[330839645,1719852655598,-500.0,0.00021917,4]
[330839646,1719852655607,-500.0,0.00021917,4]
[330839647,1719852655617,-500.0,0.00021917,4]
[330839648,1719852655626,-500.0,0.00021917,4]
[330839649,1719852655636,-619.46,0.00021917,4]
[330839650,1719852655646,-500.0,0.00021917,4]
[330839651,1719852655655,-500.0,0.00021917,4]
[330839652,1719852655665,-500.0,0.00021917,4]
[330839653,1719852655675,-500.0,0.00021917,4]
[330839654,1719852655685,-500.0,0.00021917,4]
[330839655,1719852655695,-638.75,0.00021917,4]
[330839656,1719852655705,-500.0,0.00021917,4]
[330839657,1719852655715,-500.0,0.00021917,4]
[330839658,1719852655725,-500.0,0.00021917,4]
[330839659,1719852655736,-500.0,0.00021917,4]
[330839660,1719852655746,-500.0,0.00021917,4]
[330839661,1719852655757,-500.0,0.00021917,4]
[330839662,1719852655767,-500.0,0.00021917,4]
[330839663,1719852655777,-500.0,0.00021917,4]
[330839664,1719852655786,-500.0,0.00021917,4]
[330839665,1719852655796,-500.0,0.00021917,4]
[330839666,1719852655806,-500.0,0.00021917,4]
[330839667,1719852655816,-500.0,0.00021917,4]
[330839668,1719852655827,-500.0,0.00021917,4]
[330839669,1719852655836,-500.0,0.00021917,4]
[330839670,1719852655847,-500.0,0.00021917,4]
[330839671,1719852655857,-157.6,0.00021917,4]
[330839672,1719852655867,-500.0,0.00021917,4]
[330839673,1719852655876,-500.0,0.00021917,4]
[330839674,1719852655886,-500.0,0.00021917,4]
[330839675,1719852655896,-500.0,0.00021917,4]
[330839676,1719852655906,-500.0,0.00021917,4]
[330839677,1719852655915,-500.0,0.00021917,4]
[330839678,1719852655925,-500.0,0.00021917,4]
[330839679,1719852655935,-200.0,0.00021917,2]
[330839680,1719852655945,-500.0,0.00021917,4]
[330839681,1719852655955,-500.0,0.00021917,4]
[330839682,1719852655966,-500.0,0.00021917,4]
[330839683,1719852655975,-500.0,0.00021917,4]
[330839684,1719852655986,-500.0,0.00021917,4]
[330839685,1719852655995,-500.0,0.00021917,4]
[330839686,1719852656005,-500.0,0.00021917,4]
[330839687,1719852656015,-500.0,0.00021917,4]
[330839688,1719852656025,-477.38,0.00021917,4]
[330839689,1719852656035,-500.0,0.00021917,4]
[330839690,1719852656306,-500.0,0.00021917,4]
[330839691,1719852656319,-474.26,0.00021917,4]
[330839692,1719852656330,-500.0,0.00021917,4]
[330839693,1719852656340,-500.0,0.00021917,4]
[330839694,1719852656350,-500.0,0.00021917,4]
[330839695,1719852656360,-500.0,0.00021917,4]
[330839696,1719852656369,-500.0,0.00021917,4]
[330839697,1719852656379,-500.0,0.00021917,4]
[330839698,1719852656389,-500.0,0.00021917,4]
[330839699,1719852656399,-500.0,0.00021917,4]
[330839700,1719852656409,-500.0,0.00021917,4]
[330839701,1719852656419,-500.0,0.00021917,4]
[330839702,1719852656428,-500.0,0.00021917,4]
[330839703,1719852656438,-500.0,0.00021917,4]
[330839704,1719852656447,-164.6,0.00021917,4]
[330839705,1719852656457,-500.0,0.00021917,4]
[330839706,1719852656470,-500.0,0.00021917,4]
[330839707,1719852656480,-500.0,0.00021917,4]
[330839708,1719852656490,-500.0,0.00021917,4]
[330839709,1719852656500,-500.0,0.00021917,4]
[330839710,1719852656509,-500.0,0.00021917,4]
[330839711,1719852656520,-500.0,0.00021917,4]
[330839712,1719852656529,-500.0,0.00021917,4]
[330839713,1719852656539,-500.0,0.00021917,4]
[330839714,1719852656548,-500.0,0.00021917,4]
[330839715,1719852656558,-500.0,0.00021917,4]
[330839716,1719852656568,-500.0,0.00021917,4]
[330839717,1719852656577,-500.0,0.00021917,4]
[330839718,1719852656587,-500.0,0.00021917,4]
[330839719,1719852656596,-500.0,0.00021917,4]
[330839720,1719852656606,-500.0,0.00021917,4]
[330839721,1719852656616,-500.0,0.00021917,4]
[330839722,1719852656625,-500.0,0.00021917,4]
[330839723,1719852656635,-500.0,0.00021917,4]
[330839724,1719852656645,-500.0,0.00021917,4]
[330839725,1719852656655,-500.0,0.00021917,4]
[330839726,1719852656665,-500.0,0.00021917,4]
[330839727,1719852656675,-509.80149415,0.00021917,4]
[330839728,1719852656685,-500.0,0.00021917,4]
[330839729,1719852656694,-500.0,0.00021917,4]
[330839730,1719852656705,-500.0,0.00021917,4]
[330839731,1719852656716,-500.0,0.00021917,4]
[330839732,1719852656727,-500.0,0.00021917,4]
[330839733,1719852656737,-500.0,0.00021917,4]
[330839734,1719852656747,-500.0,0.00021917,4]
[330839735,1719852656757,-500.0,0.00021917,4]
[330839736,1719852656768,-500.0,0.00021917,4]
[330839737,1719852656778,-500.0,0.00021917,4]
[330839738,1719852656788,-500.0,0.00021917,4]
[330839739,1719852656798,-500.0,0.00021917,4]
[330839740,1719852656807,-500.0,0.00021917,4]
[330839741,1719852656817,-230.94877623,0.00021917,4]
[330839742,1719852656827,-500.0,0.00021917,4]
[330839743,1719852656837,-500.0,0.00021917,4]
[330839744,1719852656846,-500.0,0.00021917,4]
[330839745,1719852656856,-311.75,0.00021917,4]
[330839746,1719852656865,-500.0,0.00021917,4]
[330839747,1719852656875,-500.0,0.00021917,4]
[330839748,1719852656885,-500.0,0.00021917,4]
[330839749,1719852656895,-500.0,0.00021917,4]
[330839750,1719852656905,-500.0,0.00021917,4]
[330839751,1719852656914,-500.0,0.00021917,4]
[330839752,1719852656924,-500.0,0.00021917,4]
[330839753,1719852656933,-500.0,0.00021917,4]
[330839754,1719852656943,-536.38,0.00021917,4]
[330839755,1719852656952,-500.0,0.00021917,4]
[330839756,1719852656963,-500.0,0.00021917,4]
[330839757,1719852656973,-500.0,0.00021917,4]
[330839758,1719852656982,-500.0,0.00021917,4]
[330839759,1719852656992,-500.0,0.00021917,4]
[330839760,1719852657001,-360.24,0.00021917,4]
[330839761,1719852657011,-500.0,0.00021917,4]
[330839762,1719852657021,-500.0,0.00021917,4]
[330839763,1719852657030,-500.0,0.00021917,4]
[330839764,1719852657040,-208.18061539,0.00021917,4]
[330839765,1719852657050,-500.0,0.00021917,4]
[330839766,1719852657059,-500.0,0.00021917,4]
[330839767,1719852657068,-500.0,0.00021917,4]
[330839768,1719852657078,-500.0,0.00021917,4]
[330839769,1719852657088,-500.0,0.00021917,4]
[330839770,1719852657098,-583.1,0.00021917,4]
[330839771,1719852657107,-500.0,0.00021917,4]
[330839772,1719852657117,-500.0,0.00021917,4]
[330839773,1719852657126,-500.0,0.00021917,4]
[330839774,1719852657135,-500.0,0.00021917,4]
[330839775,1719852657144,-500.0,0.00021917,4]
[330839776,1719852657159,-31.55366082,0.00021917,4]
[330839783,1719852990785,150.0,0.00021623,120]
[330839786,1719853013748,529.12306207,0.00011199,2]
[330839790,1719853105350,297.37308138,0.00011199,2]
[330839803,1719853568036,650.99676465,0.00011199,2]
[330839806,1719853626718,10000.0,0.00011199,2]
[330839811,1719853674565,943.80885522,0.00011199,2]
[330839812,1719853713042,411.27901864,0.00011199,2]
[330839813,1719853756680,155.0,0.00011199,2]
[330839814,1719853795558,1263.08088063,0.00011199,2]
[330839818,1719853832353,-200.04592142,0.00012273,2]
[330839820,1719853832362,-206.17373388,0.00012314,2]
[330839822,1719853832371,-235.21376949,0.00013128,2]
[330839823,1719853832382,-826.29867666,0.00013128,2]
[330839824,1719853832394,-1866.59738232,0.00013128,2]
[330839825,1719853832403,-4455.21626006,0.00013128,2]
[330839826,1719853832412,-684.75373736,0.00013128,2]
[330839827,1719853832422,-11505.88479926,0.00013472,2]
[330839828,1719853832431,-155.24207177,0.00013516,2]
[330839829,1719853832440,-310.0,0.00013574,2]
[330839830,1719853832449,-173.54,0.00015507,2]
[330839831,1719853832458,-180.42,0.00015915,2]
[330839832,1719853832467,-9137.83112723,0.00016172,2]
[330839833,1719853832479,-1862.16887277,0.00016172,2]
[330839834,1719853832490,-404.23,0.00017701,2]
[330839835,1719853832505,-297.8792184,0.00017808,2]
[330839836,1719853832517,-202.1107816,0.00017808,2]
[330839837,1719853832526,-64.23490634,0.00018406,2]
[330839838,1719853832539,-1800.0,0.00018406,2]
[330839839,1719853832550,-331.9629089,0.00018406,2]
[330839840,1719853832561,-833.79793316,0.00018406,2]
[330839841,1719853832573,-318.86689986,0.00018406,2]
[330839842,1719853832592,-18711.44816338,0.00018406,2]
[330839843,1719853832603,-253.12656111,0.00018406,2]
[330839844,1719853832615,-690.20000005,0.00018406,2]
[330839845,1719853832626,-505.38615579,0.00018406,2]
[330839846,1719853832645,-380.97647141,0.00018406,2]
[330839847,1719853832655,-1401.82347801,0.00018759,7]
[330839848,1719853832664,-1572.29569822,0.00018759,2]
[330839849,1719853832674,-227.0716558,0.00018919,2]
[330839850,1719853832683,-227.0716558,0.00018919,2]
[330839851,1719853832692,-392.27,0.00019036,2]
[330839852,1719853832702,-250.0,0.00019204,2]
[330839853,1719853832711,-1000.0,0.00019345,2]
[330839855,1719853832720,-150.19,0.0001945,2]
[330839856,1719853832729,-1046.98,0.00019566,30]
[330839857,1719853832738,-250.0,0.00019737,2]
[330839858,1719853832747,-250.0,0.00019792,2]
[330839859,1719853832757,-1000.0,0.00019826,2]
[330839860,1719853832766,-11179.69129676,0.00019845,2]
[330839861,1719853832775,-212.9,0.0001996,2]
[330839862,1719853832785,-404.23,0.00019965,2]
[330839863,1719853832795,-1000.0,0.00020055,2]
[330839864,1719853832804,-36945.69245833,0.0002068,2]
[330839865,1719853833037,-2500.0,0.000208,2]
[330839866,1719853833057,-300.0,0.000209,7]
[330839867,1719853833066,-600.0,0.00021,7]
[330839868,1719853833076,-179.17,0.00021034,3]
[330839869,1719853833085,-11724.92977846,0.00021044,2]
[330839991,1719853843644,-2373.57182662,0.00013574,2]
[330839992,1719853843654,-1194.36344986,0.00020999,2]
[330839993,1719853843664,-736.89696952,0.00021044,2]
[330839994,1719853844088,-4765.843978,0.00021044,2]
[330840004,1719853846490,-18968.7,0.00021044,2]
[330840005,1719853846519,-72.33264528,0.00021044,2]
[330840006,1719853846688,-1400.55359634,0.00021044,2]
[330840007,1719853846700,-7208.54390561,0.00021044,2]
[330840025,1719854132205,1401.82347801,0.00011199,7]
[330840027,1719854245814,540.82430088,0.00011199,2]
[330840029,1719854249967,169.60988044,0.00011199,2]
[330840031,1719854260665,471.92824264,0.00011199,2]
[330840032,1719854268716,155.0,0.00011199,2]
[330840035,1719854338914,206.0809587,0.00011199,2]
[330840037,1719854415696,1401.82347801,0.00011199,7]
[330840039,1719854717331,1396.74395133,0.00011199,7]
[330840040,1719854771204,155.0,0.00011199,2]
[330840042,1719854919441,283.65931736,0.00011199,2]
[330840044,1719854959185,227.0716558,0.00011199,2]
[330840050,1719855032643,-225.15428645,0.00013128,2]
[330840051,1719855032653,-684.46366164,0.00013574,2]
[330840052,1719855032663,-227.0716558,0.00013574,2]
[330840053,1719855032673,-180.42,0.00016029,2]
[330840054,1719855032682,-173.54,0.00016112,2]
[330840055,1719855032691,-403.32,0.00018184,2]
[330840056,1719855032701,-1000.0,0.00019,3]
[330840057,1719855032710,-501.86943769,0.000195,3]
[330840058,1719855032722,-498.13056231,0.000195,3]
[330840059,1719855032731,-303.77509045,0.00019552,2]
[330840060,1719855032742,-78.21590955,0.00019552,2]
[330840061,1719855032751,-250.0,0.00019716,2]
[330840063,1719855032762,-52.61390501,0.00019804,30]
[330840064,1719855032774,-907.11609499,0.00019804,30]
[330840065,1719855032783,-250.0,0.00019824,2]
[330840066,1719855032793,-150.19,0.00019978,2]
[330840067,1719855032803,-250.0,0.00019981,2]
[330840068,1719855032812,-842.69390501,0.0002,4]
[330840069,1719855032824,-157.30609499,0.0002,4]
[330840070,1719855032834,-1000.0,0.0002,4]
[330840071,1719855032843,-1000.0,0.0002,4]
[330840072,1719855032853,-1000.0,0.0002,4]
[330840073,1719855032862,-606.12,0.00020007,2]
[330840074,1719855032876,-293.78,0.00020025,2]
[330840075,1719855032886,-3013.65995196,0.00020033,2]
[330840092,1719855037599,-1500.0,0.00018835,2]
[330840093,1719855037608,-2855.24004804,0.00020033,2]
[330840094,1719855037618,-464.89,0.00020061,2]
[330840095,1719855037627,-1003.0,0.000203,3]
[330840096,1719855037636,-1000.0,0.00020325,2]
[330840097,1719855037649,-403.32,0.00020448,2]
[330840098,1719855037659,-1000.0,0.000205,4]
[330840099,1719855037668,-30479.0,0.00020625,2]
[330840100,1719855037678,-200.0,0.000209,7]
[330840101,1719855037687,-12762.29138076,0.00020999,3]
[330840102,1719855037696,-1250.0,0.00021,2]
[330840103,1719855037706,-500.0,0.00021,7]
[330840104,1719855037716,-550.47298576,0.00021044,2]
[330840105,1719855037725,-155.0,0.00021044,2]
[330840106,1719855037734,-581.33393112,0.00021044,2]
[330840107,1719855037743,-4279.14032286,0.00021044,15]
[330840108,1719855037753,-448.06132112,0.00021044,2]
[330840109,1719855037762,-800.0,0.000211,7]
[330840110,1719855037772,-744.41171892,0.000211,3]
[330840111,1719855037788,-35.58828108,0.000211,3]
[330840112,1719855037797,-604.16171892,0.000211,3]
[330840163,1719855042956,-432.60054073,0.0002083,2]
[330840164,1719855042981,-264.34930927,0.0002083,2]
[330840165,1719855042990,-2422.83828108,0.000211,3]
[330840166,1719855043001,-150.0,0.00021136,2]
[330840167,1719855043010,-1100.0,0.000212,7]
[330840168,1719855043020,-151.0,0.00021239,2]
[330840169,1719855043029,-1400.0,0.000213,7]
[330840170,1719855043038,-200.0,0.000214,7]
[330840171,1719855043047,-200.0,0.000215,7]
[330840172,1719855043057,-200.0,0.000216,7]
[330840173,1719855043067,-565.03,0.00021644,2]
[330840174,1719855043076,-281.96,0.00021644,2]
[330840175,1719855043085,-200.0,0.000217,7]